[Event "45th FIDE Olympiad 2024"]
[Site "Budapest"]
[Date "2024.09.16"]
[Round "6.39"]
[White "Al Abdali, Zeyad Saleh"]
[Black "Semeko, Lumen Paco"]
[Result "1-0"]
[WhiteElo "1780"]
[BlackElo "1740"]
[PlyCount "81"]
[EventDate "2024.09.05"]
[EventType "team-tourn"]
[EventCountry "HUN"]
[WhiteTeam "Saudi Arabia"]
[BlackTeam "Togo"]
[WhiteTeamCountry "SAU"]
[BlackTeamCountry "TOG"]
[TimeControl "40/5400+30:1800+30"]

1. d4 Nf6 2. c4 d5 3. cxd5 Nxd5 4. e4 Nf6 5. e5 Nd5 6. Bd3 e6 7. Nc3 c5 8. dxc5 Bxc5 9. Nf3 Nxc3 10. bxc3 Nc6 11. O-O Qc7 12. Qe2 Bd7 13. Rb1 h6 14. Rb5 Ne7 15. Rb1 Bc6 16. Nd4 Bxd4 17. cxd4 Nd5 18. Qc2 O-O 19. Bd2 Rac8 20. f4 Qd7 21. Qb2 f5 22. exf6 Nxf6 23. f5 Ne4 24. fxe6 Qxe6 25. Bf4 Qg4 26. Be5 Bd5 27. Rbe1 Ng5 28. Bg3 Rcd8 29. Be2 Rxf1+ 30. Rxf1 Qe4 31. Bh5 Nh3+ 32. Kh1 Nf2+ 33. Qxf2 Rc8 34. Bf7+ Kh7 35. Bxd5 Qxd5 36. h3 Kh8 37. Be5 Rg8 38. Qf5 Qc4 39. a3 a5 40. Rf3 b5 41. Qg6 1-0

[Event "45th FIDE Olympiad 2024"]
[Site "Budapest"]
[Date "2024.09.16"]
[Round "6.40"]
[White "Santos Latasa, Jaime"]
[Black "Pantsulaia, Levan"]
[Result "1/2-1/2"]
[ECO "E90"]
[WhiteElo "2624"]
[BlackElo "2516"]
[Annotator "RC"]
[PlyCount "93"]
[EventDate "2024.09.05"]
[EventType "team-tourn"]
[EventCountry "HUN"]
[SourceTitle "playchess.com"]
[Source "ChessBase"]
[SourceQuality "1"]
[WhiteTeam "Spain"]
[BlackTeam "Georgia"]
[WhiteTeamCountry "ESP"]
[BlackTeamCountry "GEO"]
[TimeControl "40/5400+30:1800+30"]

1. d4 {[%emt 0:00:02]} Nf6 {[%emt 0:00:52]} 2. c4 {[%emt 0:00:14]} c5 {[%emt 0:02:45]} 3. d5 {[%emt 0:00:44]} g6 {[%emt 0:00:07]} 4. Nc3 {[%emt 0:00:35]} Bg7 {[%emt 0:00:11]} 5. e4 {[%emt 0:00:35]} d6 {[%emt 0:00:05]} 6. h3 {[%emt 0:00:37]} O-O {[%emt 0:00:09]} 7. Nf3 {[%emt 0:00:03]} e6 {[%emt 0:00:11]} 8. Be2 {[%emt 0:00:53]} exd5 {[%emt 0:00:11]} 9. exd5 {[%emt 0:00:07]} Bf5 {[%emt 0:06:43]} 10. g4 {[%emt 0:01:01]} Be4 {[%emt 0:10:07]} 11. O-O {[%emt 0:00:55]} Bxf3 {[%emt 0:00:33]} 12. Bxf3 {[%emt 0:00:07]} Nbd7 {[%emt 0:00:20]} 13. a4 {[%emt 0:00:34]} Nb6 {[%emt 0:13:14]} 14. Be2 {[%emt 0:02:36]} Re8 {[%emt 0:01:03]} 15. Qc2 {[%emt 0:03:23]} Qe7 {[%emt 0:08:40]} 16. Bd3 {[%emt 0:06:30]} Nbd7 {[%emt 0:19:29]} 17. f4 {[%emt 0:08:53]} Nxg4 {[%emt 0:05:09]} 18. hxg4 {[%emt 0:00:58]} Qh4 {[%emt 0:00:04]} 19. Qh2 {[%emt 0:01:54]} Qxg4+ {[%emt 0:00:05]} 20. Qg2 {[%emt 0:03:49]} Qh4 {[%emt 0:01:05]} 21. Qf3 {[%emt 0:01:30]} f5 {[%emt 0:13:06]} 22. Bd2 {[%emt 0:03:01]} Nf6 {[%emt 0:01:26]} 23. Kg2 {[%emt 0:01:43]} Ng4 {[%emt 0:00:18]} 24. Rh1 {[%emt 0:00:18]} Qd8 {[%emt 0:00:26]} 25. Rae1 {[%emt 0:01:26]} Qb6 {[%emt 0:00:05]} 26. Nb5 {[%emt 0:00:52]} Rxe1 {[%emt 0:00:35]} 27. Rxe1 {[%emt 0:00:20]} a6 {[%emt 0:00:04]} 28. a5 {[%emt 0:02:08]} Qd8 {[%emt 0:00:05]} 29. Na3 {[%emt 0:00:27]} Bxb2 {[%emt 0:00:32]} 30. Nc2 {[%emt 0:00:04]} Bg7 {[%emt 0:02:18]} 31. Ne3 {[%emt 0:02:17]} Nf6 {[%emt 0:00:30]} 32. Nxf5 {[%emt 0:04:24]} gxf5 {[%emt 0:00:08]} 33. Bxf5 {[%emt 0:00:05]} b5 {[%emt 0:01:39]} 34. axb6 {[%emt 0:02:20]} Qxb6 {[%emt 0:00:49]} 35. Bc3 {[%emt 0:00:18]} Kh8 {[%emt 0:04:38]} 36. Re7 {[%emt 0:02:41]} Rg8 {[%emt 0:00:58]} 37. Kh3 {[%emt 0:02:55]} Qb3 {[%emt 0:01:13]} 38. Qd3 {[%emt 0:03:55]} Rb8 {[%emt 0:00:26]} 39. Rf7 {[%emt 0:03:33]} Nh5 {[%emt 0:02:57]} 40. Rf8+ {[%emt 0:09:36]} Rxf8 {[%emt 0:00:05]} 41. Bxg7+ {[%emt 0:30:04]} Kxg7 {[%emt 0:31:43]} 42. Qxb3 {[%emt 0:00:06]} Rxf5 {[%emt 0:00:05]} 43. Qb2+ {[%emt 0:02:30]} Kh6 {[%emt 0:00:00]} 44. Qb8 {[%emt 0:00:00]} Nxf4+ {[%emt 0:00:00]} 45. Kg4 {[%emt 0:00:00]} Rf6 {[%emt 0:00:00]} 46. Qd8 {[%emt 0:00:00]} Nh5 {[%emt 0:00:00]} 47. Qc7 {[%emt 0:00:00]} 1/2-1/2

[Event "45th FIDE Olympiad 2024"]
[Site "Budapest"]
[Date "2024.09.16"]
[Round "6.40"]
[White "Fumey, Enyonam Sewa"]
[Black "Khayat, Emad"]
[Result "1-0"]
[WhiteElo "1845"]
[BlackElo "1907"]
[PlyCount "49"]
[EventDate "2024.09.05"]
[EventType "team-tourn"]
[EventCountry "HUN"]
[WhiteTeam "Togo"]
[BlackTeam "Saudi Arabia"]
[WhiteTeamCountry "TOG"]
[BlackTeamCountry "SAU"]
[TimeControl "40/5400+30:1800+30"]

1. e4 e5 2. f4 d5 3. exd5 exf4 4. Nf3 Nf6 5. Nc3 Nxd5 6. Nxd5 Qxd5 7. d4 Bd6 8. Be2 O-O 9. O-O c5 10. c4 Qf5 11. Bd3 Qf6 12. Qc2 h6 13. d5 Bg4 14. Nd2 g5 15. Ne4 Qe7 16. Bd2 Nd7 17. Rae1 Ne5 18. Nxd6 Qxd6 19. Rxe5 Rae8 20. Bh7+ Kg7 21. Rfe1 Rxe5 22. Rxe5 f6 23. Qg6+ Kh8 24. Bc3 Qc7 25. Re8 1-0

[Event "45th FIDE Olympiad 2024"]
[Site "Budapest"]
[Date "2024.09.16"]
[Round "6.41"]
[White "Stefansson, Vignir Vatnar"]
[Black "Vachier-Lagrave, Maxime"]
[Result "1/2-1/2"]
[ECO "A30"]
[WhiteElo "2531"]
[BlackElo "2731"]
[Annotator "TA"]
[PlyCount "61"]
[EventDate "2024.09.05"]
[EventType "team-tourn"]
[EventCountry "HUN"]
[SourceTitle "playchess.com"]
[Source "ChessBase"]
[SourceQuality "1"]
[WhiteTeam "Iceland"]
[BlackTeam "France"]
[WhiteTeamCountry "ISL"]
[BlackTeamCountry "FRA"]
[TimeControl "40/5400+30:1800+30"]

{[%evp 26,61,0,6,5,5,7,7,15,5,20,0,0,0,0,0,0,0,0,0,0,0,0,0,0,0,0,0,0,0,0,0,0,0,0,0,0,0]} 1. Nf3 {[%emt 0:00:02]} Nf6 {[%emt 0:04:32]} 2. c4 {[%emt 0:00:08]} b6 {[%emt 0:02:04]} 3. g3 {[%emt 0:01:02]} c5 {[%emt 0:01:39]} 4. Bg2 {[%emt 0:00:23]} Bb7 {[%emt 0:00:06]} 5. O-O {[%emt 0:00:42]} g6 {[%emt 0:00:06]} 6. b3 {[%emt 0:06:49]} Bg7 {[%emt 0:06:32]} 7. Bb2 {[%emt 0:00:08]} O-O {[%emt 0:00:05]} 8. Nc3 {[%emt 0:03:35]} d5 {[%emt 0:06:26]} 9. Nxd5 {[%emt 0:01:08]} Nxd5 {[%emt 0:00:05]} 10. Bxg7 {[%emt 0:00:06]} Kxg7 {[%emt 0:00:04]} 11. cxd5 {[%emt 0:00:08]} Qxd5 {[%emt 0:00:06]} 12. d4 {[%emt 0:00:17]} cxd4 {[%emt 0:00:41]} 13. Qxd4+ {[%emt 0:00:08]} Qxd4 {[%emt 0:00:05]} 14. Nxd4 {[%emt 0:00:04][%cal Bf3d4,Bd4c6,Bc6e7,Be7d5][%mdl 32] The position is equal.} Bxg2 {[%emt 0:00:07]} 15. Kxg2 {[%emt 0:00:04]} a5 {[%emt 0:00:18]} 16. Rac1 {[%emt 0:13:01]} Na6 {[%emt 0:01:16] Dodges Rc7} 17. Nc6 {[%emt 0:01:19]} Rfc8 {[%emt 0:08:15]} 18. Nxe7 {[%emt 0:14:09]} Rxc1 {[%emt 0:00:06]} 19. Rxc1 $11 {[%emt 0:00:04][%mdl 4096] Endgame. KRN-KRN} Re8 {[%emt 0:00:05]} 20. Nd5 {[%emt 0:00:04]} Rxe2 {[%emt 0:00:06]} 21. Nxb6 {[%emt 0:00:24]} Rxa2 {[%emt 0:00:07]} 22. Nd5 {[%emt 0:00:11]} Rd2 {[%emt 0:07:25]} 23. Rc6 {[%emt 0:00:28]} Rxd5 {[%emt 0:00:05]} 24. Rxa6 {[%emt 0:00:03] KR-KR} Rb5 {[%emt 0:00:04]} 25. h4 {[%emt 0:00:06]} h5 {[%emt 0:00:02]} 26. Kf1 {[%emt 0:00:05]} Rxb3 {[%emt 0:00:06]} 27. Rxa5 {[%emt 0:00:04]} Rb1+ {[%emt 0:00:04]} 28. Kg2 {[%emt 0:00:06]} Rb3 {[%emt 0:00:02]} 29. Kg1 {[%emt 0:00:04]} Rb1+ {[%emt 0:00:04]} 30. Kg2 {[%emt 0:00:03]} Rb3 {[%emt 0:00:04]} 31. Ra2 {[%emt 0:00:04] A rather calm draw.   Weighted Error Value: White=0.03 (flawless) /Black=0.01 (flawless) .  OK:         	White=8     	Black=5      Best:        	---       	Black=1} 1/2-1/2

[Event "45th FIDE Olympiad 2024"]
[Site "Budapest"]
[Date "2024.09.16"]
[Round "6.41"]
[White "Ebosse, Kingue Victor Patric"]
[Black "Stratonowitsch, Andre"]
[Result "1/2-1/2"]
[WhiteElo "2014"]
[BlackElo "2154"]
[PlyCount "91"]
[EventDate "2024.09.05"]
[EventType "team-tourn"]
[EventCountry "HUN"]
[WhiteTeam "Cameroon"]
[BlackTeam "Seychelles"]
[WhiteTeamCountry "CAM"]
[BlackTeamCountry "SEY"]
[TimeControl "40/5400+30:1800+30"]

1. d4 Nf6 2. Nf3 e6 3. e3 c5 4. Bd3 Be7 5. Nbd2 O-O 6. b3 b6 7. Bb2 Bb7 8. Qe2 Nc6 9. a3 Rc8 10. O-O Re8 11. Rfe1 d6 12. Rad1 Qc7 13. Ng5 h6 14. Nge4 d5 15. Ng3 e5 16. dxc5 Bxc5 17. b4 Bf8 18. c4 d4 19. Nde4 Nxe4 20. Nxe4 dxe3 21. fxe3 Re6 22. Rf1 Ne7 23. Ng3 Rd8 24. Bc2 Rxd1 25. Rxd1 Ng6 26. Qg4 Be7 27. Bxg6 Rxg6 28. Qd7 Qc6 29. Qxc6 Bxc6 30. Bxe5 Bg5 31. Kf2 Re6 32. Bf4 Bh4 33. Rd6 Rxd6 34. Bxd6 a6 35. Bc7 b5 36. c5 Kf8 37. Be5 g6 38. Kf1 Bxg3 39. Bxg3 Ke7 40. Bf4 h5 41. g3 Ke6 42. Ke2 Be4 43. Kd2 Kd5 44. Kc3 Bf5 45. h4 Be4 46. Bd6 1/2-1/2

[Event "45th FIDE Olympiad 2024"]
[Site "Budapest"]
[Date "2024.09.16"]
[Round "6.42"]
[White "Bacrot, Etienne"]
[Black "Kjartansson, Gudmundur"]
[Result "1-0"]
[ECO "C67"]
[WhiteElo "2665"]
[BlackElo "2478"]
[Annotator "TA"]
[PlyCount "133"]
[EventDate "2024.09.05"]
[EventType "team-tourn"]
[EventCountry "HUN"]
[SourceTitle "playchess.com"]
[Source "ChessBase"]
[SourceQuality "1"]
[WhiteTeam "France"]
[BlackTeam "Iceland"]
[WhiteTeamCountry "FRA"]
[BlackTeamCountry "ISL"]
[TimeControl "40/5400+30:1800+30"]

{[%evp 52,133,18,18,20,18,25,18,14,6,21,21,57,41,41,39,80,77,93,93,96,93,142,136,158,122,159,130,363,355,355,355,475,459,1232,1215,594,1008,1212,1171,1194,1133,854,783,2162,1532,12850,29939,29940,29945,12845,12847,29942,12763,29937,6205,29954,29954,29956,29961,29962,11675,29955,5517,29979,29980,29980,29981,29981,29982,29982,29983,29983,29982,29984,29983,29983,29984,29984,29985,29985,29986,29986,29987]} 1. e4 {[%emt 0:02:28]} e5 {[%emt 0:00:05]} 2. Nf3 {[%emt 0:00:06]} Nc6 {[%emt 0:00:06]} 3. Bb5 {[%emt 0:00:04]} Nf6 {[%emt 0:00:32]} 4. O-O {[%emt 0:00:06]} Nxe4 {[%emt 0:00:10]} 5. d4 {[%emt 0:00:04]} Nd6 {[%emt 0:00:31]} 6. Bxc6 {[%emt 0:00:05]} dxc6 {[%emt 0:00:02]} 7. dxe5 {[%emt 0:00:08]} Nf5 {[%emt 0:00:03]} 8. Qxd8+ {[%emt 0:00:05]} Kxd8 {[%emt 0:00:03]} 9. Nc3 {[%emt 0:00:07]} Ke8 {[%emt 0:00:46]} 10. h3 {[%emt 0:00:28]} h5 {[%emt 0:00:24] C67: Ruy Lopez: Berlin Defence: 4 0-0 Nxe4.} 11. Ne2 {[%emt 0:00:31]} b6 {[%emt 0:01:12]} 12. Bg5 {[%emt 0:07:39]} Bb7 {[%emt 0:01:53]} 13. Rad1 {[%emt 0:01:33]} c5 {[%emt 0:03:52]} 14. Nc3 {[%emt 0:01:06]} Be7 {[%emt 0:01:37]} 15. Nd5 {[%emt 0:15:46]} Bxd5 {[%emt 0:06:00]} 16. Rxd5 {[%emt 0:00:38]} Rd8 {[%emt 0:00:49]} 17. Rxd8+ {[%emt 0:07:22]} Bxd8 {[%emt 0:01:33]} 18. Bxd8 $146 {[%emt 0:07:56]} ({Predecessor:} 18. Rd1 Bxg5 19. Nxg5 Ke7 20. c3 Nh4 21. g3 Ng6 22. f4 h4 23. Kf2 hxg3+ 24. Kxg3 {½-½ Vachier Lagrave,M (2798)-Kramnik,V (2812) Dortmund 44th 2016 (2)}) 18... Kxd8 {[%emt 0:00:09]} 19. Rd1+ {[%emt 0:00:03]} Ke7 {[%emt 0:00:19]} 20. g3 {[%emt 0:00:05]} Rg8 {[%emt 0:02:30]} 21. h4 {[%emt 0:29:00]} a5 {[%emt 0:07:16]} 22. c3 {[%emt 0:02:14]} Nh6 {[%emt 0:24:21]} 23. Ng5 {[%emt 0:01:09]} Ng4 {[%emt 0:05:57]} 24. e6 {[%emt 0:00:20]} fxe6 {[%emt 0:01:28]} 25. Re1 {[%emt 0:00:12]} Kd7 {[%emt 0:11:36]} 26. Rxe6 {[%emt 0:01:29]} Rf8 {[%emt 0:00:52]} (26... Re8 $2 27. Rxe8 Kxe8 28. Ne6 $16) 27. Re2 {[%emt 0:01:13]} Rf5 {[%emt 0:03:19]} 28. Kg2 {[%emt 0:09:06]} Ne5 {[%emt 0:01:42]} 29. Rd2+ {[%emt 0:00:13]} Ke7 {[%emt 0:00:50]} 30. Nh3 {[%emt 0:04:36]} Nc4 {[%emt 0:01:47]} 31. Rc2 {[%emt 0:00:03]} Re5 {[%emt 0:01:39]} 32. Nf4 {[%emt 0:00:48]} Kf7 {[%emt 0:02:48]} 33. b3 {[%emt 0:01:37]} Nd6 {[%emt 0:00:06]} 34. c4 $1 {[%emt 0:02:36]} Nf5 {[%emt 0:06:47]} 35. Rd2 {[%emt 0:00:25]} Nd4 {[%emt 0:00:11]} 36. Nd5 {[%emt 0:00:04]} Re2 {[%emt 0:07:04]} ({Black should try} 36... Ne6) 37. Rxe2 $16 {[%emt 0:01:20]} Nxe2 {[%emt 0:00:02]} 38. Kf3 $1 {[%emt 0:00:53]} (38. Nxc7 Nc1 $11) 38... Nc1 {[%emt 0:01:19]} 39. Nc3 $1 {[%emt 0:00:42]} (39. Nxc7 Nxa2 40. Nd5 Nc1 $11) 39... a4 $2 {[%emt 0:00:35]} (39... Nd3 $16 40. Ke3 Nb4) 40. bxa4 $18 {[%emt 0:02:55]} Nd3 {[%emt 0:00:25] [#]} 41. Ke4 $1 {[%emt 0:14:06]} Nxf2+ {[%emt 0:01:05]} 42. Kd5 {[%emt 0:00:11]} Nh1 {[%emt 0:24:46] [#]} (42... Nd3 $142 43. Kc6 Ne5+ 44. Kxc7 Nxc4) 43. Ne4 $1 $18 {[%emt 0:04:08]} Ke7 {[%emt 0:01:14]} 44. Kc6 {[%emt 0:01:55]} Kd8 {[%emt 0:00:39]} 45. a5 {[%emt 0:01:10]} bxa5 {[%emt 0:00:04]} 46. Kxc5 {[%emt 0:00:09]} Kd7 {[%emt 0:00:09]} 47. Kd5 {[%emt 0:00:14]} (47. Kb5 Ke6 $16) 47... a4 {[%emt 0:00:24]} 48. a3 {[%emt 0:04:32]} g6 {[%emt 0:00:24]} 49. Ke5 {[%emt 0:03:17]} Ke7 {[%emt 0:00:04]} 50. Kf4 {[%emt 0:03:39]} Ke6 {[%emt 0:00:07]} 51. Kf3 {[%emt 0:02:12]} Ke5 {[%emt 0:00:32]} 52. Nc3 {[%emt 0:00:15]} Kd4 {[%emt 0:00:31]} 53. Nxa4 {[%emt 0:00:25]} Kxc4 {[%emt 0:00:01]} 54. Nb2+ {[%emt 0:02:23]} Kb3 {[%emt 0:00:01]} 55. a4 {[%emt 0:00:07]} Kb4 {[%emt 0:04:53]} 56. Kg2 {[%emt 0:00:11]} c5 {[%emt 0:00:07]} 57. Kxh1 {[%emt 0:00:39]} (57. Nd3+ $142 Kc4 58. Ne5+ Kb4 59. Kxh1 (59. Nxg6 Nf2 $18) 59... c4 60. Nxg6 Kc3 61. Nf4 Kd2 62. Nd5 (62. Nxh5 $2 c3 $19)) 57... Kb3 {[%emt 0:00:10]} 58. a5 {[%emt 0:00:33]} Kxb2 {[%emt 0:00:02]} 59. a6 {[%emt 0:00:04]} c4 {[%emt 0:00:21]} 60. a7 {[%emt 0:00:04]} c3 {[%emt 0:00:02]} 61. a8=Q {[%emt 0:00:06]} (61. a8=B $2 {too greedy.} c2 62. Kg2 c1=Q $19 (62... c1=R 63. Be4 $11)) 61... c2 {[%emt 0:00:01]} 62. Qb7+ {[%emt 0:00:57]} Kc3 {[%emt 0:00:01]} 63. Qc6+ {[%emt 0:00:25]} Kd2 {[%emt 0:00:02]} 64. Qd5+ {[%emt 0:00:11]} Ke2 {[%emt 0:00:01]} 65. Qe4+ {[%emt 0:00:16]} Kd2 {[%emt 0:00:02]} 66. Qd4+ {[%emt 0:00:05]} Ke2 {[%emt 0:00:03]} 67. Qc3 {[%emt 0:00:06]} 1-0

[Event "45th FIDE Olympiad 2024"]
[Site "Budapest"]
[Date "2024.09.16"]
[Round "6.42"]
[White "Meier, Peter"]
[Black "Zebaze, Dongmo Loic Dylane"]
[Result "1/2-1/2"]
[WhiteElo "2062"]
[BlackElo "1914"]
[PlyCount "150"]
[EventDate "2024.09.05"]
[EventType "team-tourn"]
[EventCountry "HUN"]
[WhiteTeam "Seychelles"]
[BlackTeam "Cameroon"]
[WhiteTeamCountry "SEY"]
[BlackTeamCountry "CAM"]
[TimeControl "40/5400+30:1800+30"]

1. d4 Nf6 2. Nf3 d5 3. c4 e6 4. g3 a6 5. Bg2 dxc4 6. O-O Bd6 7. Qc2 O-O 8. Nbd2 b5 9. e4 Be7 10. Ng5 g6 11. e5 Nd5 12. Nde4 Nc6 13. Nf3 Bb7 14. Bh6 Re8 15. Rad1 Nb8 16. a3 Nd7 17. Bg5 N5b6 18. h4 Kg7 19. Nh2 Nd5 20. Ng4 h5 21. Ngf6 Rh8 22. Nxd7 Qxd7 23. Bf6+ Bxf6 24. exf6+ Kf8 25. Qd2 Rd8 26. Rfe1 Qc8 27. Nc5 Bc6 28. Qg5 Be8 29. Bh3 Rd6 30. Re5 c6 31. Rde1 Nc7 32. R1e4 Rd5 33. Bg2 Qd8 34. Qf4 Rd6 35. Nb7 Qd7 36. Nxd6 Qxd6 37. g4 Nd5 38. Qg5 Bd7 39. Bf3 Rg8 40. Qh6+ Ke8 41. Qg5 Kf8 42. Kh1 hxg4 43. Bxg4 c3 44. bxc3 Nxc3 45. Qh6+ Ke8 46. Qh7 Qf8 47. Bxe6 Nxe4 48. Bxf7+ Kd8 49. Qxg8 Qxg8 50. Bxg8 Nxf6 51. Bf7 Bf5 52. Re1 Kd7 53. Rg1 Ng4 54. f3 Nf2+ 55. Kh2 Nh3 56. Re1 Nf4 57. Kg3 Nh5+ 58. Kf2 Nf4 59. Rh1 Ke7 60. Bb3 a5 61. a4 Kd6 62. Ra1 b4 63. Rh1 Nd5 64. h5 gxh5 65. Bxd5 Kxd5 66. Rxh5 Ke6 67. Rh8 Kd5 68. Ke3 b3 69. Rb8 Kc4 70. Kf4 Bd3 71. Ke5 Kc3 72. Kd6 b2 73. Kxc6 b1=Q 74. Rxb1 Bxb1 75. Kb5 Kxd4 1/2-1/2

[Event "45th FIDE Olympiad 2024"]
[Site "Budapest"]
[Date "2024.09.16"]
[Round "6.43"]
[White "Heimisson, Hilmir Freyr"]
[Black "Maurizzi, Marc`andria"]
[Result "0-1"]
[ECO "A50"]
[WhiteElo "2391"]
[BlackElo "2595"]
[Annotator "TA"]
[PlyCount "86"]
[EventDate "2024.09.05"]
[EventType "team-tourn"]
[EventCountry "HUN"]
[SourceTitle "playchess.com"]
[Source "ChessBase"]
[SourceQuality "1"]
[WhiteTeam "Iceland"]
[BlackTeam "France"]
[WhiteTeamCountry "ISL"]
[BlackTeamCountry "FRA"]
[TimeControl "40/5400+30:1800+30"]

{[%evp 9,86,58,51,63,58,46,63,41,31,27,56,45,65,62,55,-11,-5,-25,-19,-23,-16,-37,0,-56,-39,-25,-24,-62,-65,-71,-45,-66,-64,-77,-83,-75,-68,-66,-57,-61,-68,-53,-75,-64,-56,-148,-96,-149,-98,-210,-189,-300,-75,-214,-224,-208,-226,-247,-262,-271,-265,-253,-190,-276,-257,-384,-341,-360,-363,-598,-620,-999,-966,-928,-934,-29989,-29990,-29990,-29991]} 1. d4 {[%emt 0:03:01]} Nf6 {[%emt 0:00:29]} 2. c4 {[%emt 0:01:00]} b6 {[%emt 0:00:44]} 3. Nc3 {[%emt 0:01:14]} Bb7 {[%emt 0:00:08]} 4. Qc2 {[%emt 0:03:01]} Nc6 {[%emt 0:01:06]} 5. Nf3 {[%emt 0:05:05]} Nb4 {[%emt 0:00:35]} 6. Qb1 {[%emt 0:09:01]} Bxf3 {[%emt 0:01:03]} 7. gxf3 {[%emt 0:06:50]} g6 {[%emt 0:01:13]} 8. f4 {[%emt 0:02:20] White is slightly better.} e6 {[%emt 0:02:31]} 9. Bg2 {[%emt 0:02:40]} c6 {[%emt 0:04:59]} 10. a3 {[%emt 0:01:05]} Na6 {[%emt 0:01:32]} 11. e4 {[%emt 0:00:35]} Nh5 {[%emt 0:03:04]} 12. Be3 {[%emt 0:04:29]} (12. h4 $1 $14) 12... Bh6 $11 {[%emt 0:01:16]} 13. Qc1 {[%emt 0:00:31]} Qh4 {[%emt 0:00:10]} 14. Ne2 {[%emt 0:01:51]} O-O {[%emt 0:02:16][%cal Od7d5]} 15. Qd2 {[%emt 0:03:28]} c5 {[%emt 0:03:01]} 16. d5 {[%emt 0:04:04]} ({White should play} 16. dxc5 $11 Nxc5 17. Rd1) 16... exd5 $15 {[%emt 0:06:51]} 17. cxd5 {[%emt 0:01:36]} d6 {[%emt 0:03:35]} 18. O-O-O {[%emt 0:00:53]} c4 {[%emt 0:01:20]} 19. Bf3 {[%emt 0:16:51]} Nc5 {[%emt 0:02:32]} 20. Kb1 {[%emt 0:00:33]} Rae8 {[%emt 0:08:55]} 21. Ng3 {[%emt 0:03:09] Strongly threatening Bxh5.} Nxf4 {[%emt 0:08:26]} (21... Bxf4 $6 22. Bxh5 Bxg3 23. hxg3 $14) 22. Rhg1 {[%emt 0:00:30] [#]} Kh8 $1 {[%emt 0:00:04] aiming for ...b5. Black is more active.} 23. Qc3+ {[%emt 0:02:00]} f6 $1 {[%emt 0:00:27] White must now prevent ...Nh3.} 24. Qxc4 {[%emt 0:00:31]} Nh3 {[%emt 0:01:51] Excellent horsemanship.} (24... Qxh2 $2 25. Rh1 $18) 25. Bxh6 {[%emt 0:04:36]} Qxh6 {[%emt 0:00:49]} 26. Rgf1 {[%emt 0:00:31]} Ng5 $36 {[%emt 0:05:12][%csl LRf3,LRh2][%mdl 2048] Black is more active.} 27. Bg2 {[%emt 0:04:08]} (27. Qc3 $15) 27... Qxh2 $17 {[%emt 0:01:15]} 28. Rg1 {[%emt 0:00:50]} Qh4 {[%emt 0:01:54]} (28... b5 $142 29. Qc1 Rf7 (29... Ncxe4 30. Nxe4 Nxe4 31. Bxe4 $15)) 29. Rd4 {[%emt 0:08:12]} (29. Qd4 $17 {keeps fighting.}) 29... Qf4 {[%emt 0:01:14]} 30. Qc2 {[%emt 0:06:44]} (30. Rf1 {was worth a try.}) 30... Rc8 $2 {[%emt 0:07:02]} (30... f5 $19 {[%cal Rf5e4] is more deadly.} 31. Re1 Qe5) 31. Rc4 {[%emt 0:00:36] Loses the game.} (31. Qd2 $17 Qxd2 32. Rxd2) 31... b5 $19 {[%emt 0:00:12]} 32. Rc3 {[%emt 0:00:24]} Rce8 {[%emt 0:00:11]} 33. Re3 {[%emt 0:01:14]} a5 {[%emt 0:01:19]} 34. Rf1 {[%emt 0:01:04]} b4 {[%emt 0:03:04]} 35. Ne2 {[%emt 0:02:04]} Qg4 {[%emt 0:02:24]} 36. Rg1 {[%emt 0:00:39] [#]} (36. Rg3 $142 Qc8 37. Re3) 36... Qh4 $1 {[%emt 0:05:33]} (36... Ngxe4 37. Bxe4 Qd7 38. axb4 axb4 39. Nd4 $16) (36... bxa3 37. Rxa3 Qh4 (37... Ncxe4 38. f3 $16) 38. Rg3 Rxe4 (38... Ncxe4 39. Rh1 $11) 39. Bxe4 (39. Rh1 Rxe2 40. Rxh4 Rxc2 $15) 39... Qxe4 40. Re3 Qxd5 41. Rd1 $11) 37. Ng3 {[%emt 0:01:04]} (37. Nd4 {was necessary.}) 37... Qf4 {[%emt 0:00:40]} 38. Rge1 {[%emt 0:00:28]} Rb8 {[%emt 0:01:31]} 39. Ka1 $2 {[%emt 0:00:32]} (39. Rf1) 39... Rfc8 {[%emt 0:00:18] ...a4 is the strong threat.} 40. Qe2 {[%emt 0:00:34]} bxa3 {[%emt 0:00:43]} 41. Rxa3 {[%emt 0:01:34]} Nb3+ {[%emt 0:00:32]} 42. Kb1 {[%emt 0:01:43]} Nd2+ {[%emt 0:01:41]} 43. Ka1 {[%emt 0:01:24] [#]} Rxb2 $3 {[%emt 0:00:47][%mdl 512] Weighted Error Value: White=0.58/Black=0.14 (very precise) .  Missed win:     	---       	Black=1      Mistake:       	White=9     	Black=1      Inaccurate:     	White=2     	Black=3      OK:         	White=11    	Black=16     Best:        	White=4     	Black=4      Strong:       	---       	Black=3} 0-1

[Event "45th FIDE Olympiad 2024"]
[Site "Budapest"]
[Date "2024.09.16"]
[Round "6.43"]
[White "Amba, Oyon Marius Claude"]
[Black "Pillay, Ragul"]
[Result "1-0"]
[WhiteElo "1975"]
[BlackElo "1633"]
[PlyCount "75"]
[EventDate "2024.09.05"]
[EventType "team-tourn"]
[EventCountry "HUN"]
[WhiteTeam "Cameroon"]
[BlackTeam "Seychelles"]
[WhiteTeamCountry "CAM"]
[BlackTeamCountry "SEY"]
[TimeControl "40/5400+30:1800+30"]

1. e4 c5 2. Nf3 d6 3. d4 cxd4 4. Nxd4 g6 5. Nc3 Bg7 6. Be3 Nf6 7. Be2 O-O 8. O-O Nc6 9. Kh1 Bd7 10. f4 Nxd4 11. Bxd4 Bc6 12. Bf3 Qd7 13. g4 Rfe8 14. g5 Nh5 15. Bg4 e6 16. Bxh5 Bxd4 17. Qxd4 gxh5 18. Rad1 e5 19. Qe3 Qg4 20. f5 Kh8 21. Rd2 h4 22. Rg2 Qh5 23. g6 Rg8 24. g7+ Rxg7 25. Rxg7 Kxg7 26. f6+ Kh8 27. Qf3 Qxf3+ 28. Rxf3 Rg8 29. Rd3 Rd8 30. Kg2 h6 31. Kh3 Kh7 32. Kxh4 Kg6 33. Rf3 d5 34. exd5 e4 35. Rg3+ Kxf6 36. dxc6 bxc6 37. Re3 Rd2 38. Nxe4+ 1-0